{"text_format":"3","workbook":"xlsx","n_sheets":1,"sheets":["Sheet1"],"not_rendered":{"defined_names":1},"read":"whole","date_system":"1900"}

{"sheet":"Sheet1","index":0,"n_rows":97,"n_cols":8,"rows_kept":97,"merged":[[0,0,0,7],[2,0,4,7],[8,1,8,7],[21,1,21,5],[22,1,22,7],[31,1,31,5],[32,1,32,7],[41,1,41,5],[44,1,44,7],[46,1,46,5],[46,6,46,7],[47,1,47,5],[47,6,47,7],[48,1,48,5],[48,6,48,7],[49,1,49,5],[49,6,49,7],[50,1,50,5],[50,6,50,7],[51,1,51,5],[51,6,51,7],[54,1,54,7],[55,1,55,7],[56,1,56,7],[57,1,57,7],[59,1,59,7],[63,1,63,2],[76,1,76,2],[85,1,85,2],[96,1,98,2]]}
["ОБРАЗАЦ СТРУКТУРЕ ПОНУЂЕНЕ ЦЕНЕ"]
[]
["У поступку јавне набавке: Пројекат просторног уређења дела централног језгра са реконструкцијом објеката јавне намене, редни број 0010/2026, понуђач _________________________________________________________________________, са седиштем у ______________________________ ул. _____________________________ бр. _____, доставља образац структуре понуђене цене."]
[]
[]
[]
[]
["Р.бр.","ОПИС ПОЗИЦИЈЕ","Количина ","Јед. мере","Јед.цена без ПДВ","Јед.цена са ПДВ","УКУПНО БЕЗ ПДВ","УКУПНО СА ПДВ"]
[null,"Целина бр.1 - Партерно уређење дела централне зоне Сремске Митровице са реконструкцијом и/или изградњом недостајуће нфраструктурне мреже "]
[1,"Геодетски снимак локације",1,"ком",null,null,{"$f":"C10*E10","v":{"v":0,"d":"0.00"}},{"$f":"C10*F10","v":{"v":0,"d":"0.00"}}]
[2,"Геомеханички елаборат",1,"ком",null,null,{"$f":"C11*E11","v":{"v":0,"d":"0.00"}},{"$f":"C11*F11","v":{"v":0,"d":"0.00"}}]
[3,"Идејни концепт",1,"ком",null,null,{"v":0,"d":"0.00"},{"v":0,"d":"0.00"}]
[4,"Идејно решење за локацијске услове (ИДР) - 1.ФАЗА",1,"ком",null,null,{"v":0,"d":"0.00"},{"v":0,"d":"0.00"}]
[5,"Пројекат за грађевинску дозволу (ПГД) / Идејни пројекат (ИДП) - 1.ФАЗА",1,"ком",null,null,{"v":0,"d":"0.00"},{"v":0,"d":"0.00"}]
[6,"Пројекат за извођење (ПЗИ) - 1.ФАЗА",1,"ком",null,null,{"v":0,"d":"0.00"},{"v":0,"d":"0.00"}]
[7,"Идејно решење за локацијске услове (ИДР) - 2.ФАЗА",1,"ком",null,null,{"v":0,"d":"0.00"},{"v":0,"d":"0.00"}]
[8,"Пројекат за грађевинску дозволу (ПГД) / Идејни пројекат (ИДП) - 2.ФАЗА",1,"ком",null,null,{"v":0,"d":"0.00"},{"v":0,"d":"0.00"}]
[9,"Пројекат за извођење (ПЗИ) - 2.ФАЗА",1,"ком",null,null,{"v":0,"d":"0.00"},{"v":0,"d":"0.00"}]
[10,"Идејно решење за локацијске услове (ИДР) - 3.ФАЗА",1,"ком",null,null,{"v":0,"d":"0.00"},{"v":0,"d":"0.00"}]
[11,"Пројекат за грађевинску дозволу (ПГД) / Идејни пројекат (ИДП) - 3.ФАЗА",1,"ком",null,null,{"v":0,"d":"0.00"},{"v":0,"d":"0.00"}]
[12,"Пројекат за извођење (ПЗИ) - 3.ФАЗА",1,"ком",null,null,{"v":0,"d":"0.00"},{"$f":"C21*F21","v":{"v":0,"d":"0.00"}}]
[null,"УКУПНО БЕЗ И СА ПДВ-ОМ",{"$nulls":4},{"$f":"SUM(G10:G21)","v":{"v":0,"d":"0.00"}},{"$f":"SUM(H10:H21)","v":{"v":0,"d":"0.00"}}]
[null,"Целина бр.2 - Реконстукција \"Музеја Срема\""]
[13,"Геодетски снимак локације",1,"ком",null,null,{"$f":"C24*E24","v":{"v":0,"d":"0.00"}},{"$f":"C24*F24","v":{"v":0,"d":"0.00"}}]
[14,"Геомеханички елаборат",1,"ком",null,null,{"$f":"C25*E25","v":{"v":0,"d":"0.00"}},{"$f":"C25*F25","v":{"v":0,"d":"0.00"}}]
[15,"Извештај о затеченом стању објекта",1,"ком",null,null,{"v":0,"d":"0.00"},{"v":0,"d":"0.00"}]
[16,"Израда пројекта постојећег стања",1,"ком",null,null,{"v":0,"d":"0.00"},{"v":0,"d":"0.00"}]
[17,"Идејни концепт",1,"ком",null,null,{"v":0,"d":"0.00"},{"v":0,"d":"0.00"}]
[18,"Идејно решење за локацијске услове (ИДР)",1,"ком",null,null,{"v":0,"d":"0.00"},{"v":0,"d":"0.00"}]
[19,"Идејни пројекат (ИДП)",1,"ком",null,null,{"v":0,"d":"0.00"},{"v":0,"d":"0.00"}]
[20,"Пројекат за извођење (ПЗИ)",1,"ком",null,null,{"v":0,"d":"0.00"},{"v":0,"d":"0.00"}]
[null,"УКУПНО БЕЗ И СА ПДВ-ОМ",{"$nulls":4},{"$f":"SUM(G24:G31)","v":{"v":0,"d":"0.00"}},{"$f":"SUM(H24:H31)","v":{"v":0,"d":"0.00"}}]
[null,"Целина бр.3 - Реконструкција Галерије \"Лазар Возаревић\""]
[21,"Геодетски снимак локације",1,"ком",null,null,{"$f":"C34*E34","v":{"v":0,"d":"0.00"}},{"$f":"C34*F34","v":{"v":0,"d":"0.00"}}]
[22,"Геомеханички елаборат",1,"ком",null,null,{"$f":"C35*E35","v":{"v":0,"d":"0.00"}},{"$f":"C35*F35","v":{"v":0,"d":"0.00"}}]
[23,"Извештај о затеченом стању објекта",1,"ком",null,null,{"v":0,"d":"0.00"},{"v":0,"d":"0.00"}]
[24,"Израда пројекта постојећег стања",1,"ком",null,null,{"v":0,"d":"0.00"},{"v":0,"d":"0.00"}]
[25,"Идејни концепт",1,"ком",null,null,{"v":0,"d":"0.00"},{"v":0,"d":"0.00"}]
[26,"Идејно решење за локацијске услови (ИДР)",1,"ком",null,null,{"v":0,"d":"0.00"},{"v":0,"d":"0.00"}]
[27,"Идејни пројекат (ИДП)",1,"ком",null,null,{"v":0,"d":"0.00"},{"v":0,"d":"0.00"}]
[28,"Пројекат за извођење (ПЗИ)",1,"ком",null,null,{"v":0,"d":"0.00"},{"v":0,"d":"0.00"}]
[null,"УКУПНО БЕЗ И СА ПДВ-ОМ",{"$nulls":4},{"$f":"SUM(G34:G41)","v":{"v":0,"d":"0.00"}},{"$f":"SUM(H34:H41)","v":{"v":0,"d":"0.00"}}]
[]
[]
[null,"ЗБИРНА РЕКАПИТУЛАЦИЈА "]
[]
[1,"Целина бр.1 - Партерно уређење дела централне зоне Сремске Митровице са реконструкцијом и/или изградњом недостајуће нфраструктурне мреже ",{"$nulls":4},{"$f":"G22","v":{"v":0,"d":"0.00"}}]
[2,"Целина бр.2 - Реконстукција \"Музеја Срема\"",{"$nulls":4},{"$f":"G32","v":{"v":0,"d":"0.00"}}]
[3,"Целина бр.3 - Реконструкција Галерије \"Лазар Возаревић\"",{"$nulls":4},{"$f":"G42","v":{"v":0,"d":"0.00"}}]
[null,"УКУПНО БЕЗ ПДВ-А",{"$nulls":4},{"$f":"SUM(G47:H49)","v":{"v":0,"d":"0.00"}}]
[null,"ПДВ",{"$nulls":4},{"$f":"0.2*G50","v":{"v":0,"d":"0.00"}}]
[null,"УКУПНО СА ПДВ-ОМ",{"$nulls":4},{"$f":"SUM(G50:H51)","v":{"v":0,"d":"0.00"}}]
[]
[]
[null,"Упутство за попуњавање обрасца структуре цене:"]
[null,"Понуђач треба да попуни образац структуре цене на следећи начин:"]
[null,"У колону 5 уписати јединичну цену без ПДВ-а."]
[null,"У колону 6 уписати јединичну цену са ПДВ-ом."]
[]
[null,"Напомена:  У случају рачунских грешака у табели, понуђач је дужан да изврши проверу тачности свих података и прорачуна. Меродавне су јединичне цене и коначни износи дати у понуди. Уколико постоји неслагање између јединичне цене и укупног износа, меродавна је јединична цена. Наручилац задржава право да исправи рачунске грешке приликом прегледа и стручне оцене понуда."]
[]
[]
["Р. бр.","ОПИС ПОЗИЦИЈЕ","Број календарских дана"]
[null,"Целина бр.1 -  Партерно уређење дела централне зоне Сремске  Митровице  са реконструкцијом и/или изградњом недостајуће инфраструктурне мреже"]
[1,"ГЕОДЕТСКИ СНИМАК ЛОКАЦИЈЕ"]
[2,"ГЕОМЕХАНИЧКИ ЕЛАБОРАТ"]
[3,"ИДЕЈНИ КОНЦЕПТ "]
[4,"ИДЕЈНО РЕШЕЊЕ ЗА ЛОКАЦИЈСКЕ УСЛОВЕ (ИДР) – 1.ФАЗА"]
[5,"ПРОЈЕКАТ ЗА ГРАЂЕВИНСКУ ДОЗВОЛУ (ПГД) /ИДЕЈНИ ПРОКАТ (ИДП) – 1.ФАЗА  "]
[6,"ПРОЈЕКАТ ЗА ИЗВОЂЕЊЕ (ПЗИ) – 1.ФАЗА "]
[7,"ИДЕЈНО РЕШЕЊЕ ЗА ЛОКАЦИЈСКЕ УСЛОВЕ (ИДР) – 2.ФАЗА"]
[8,"ПРОЈЕКАТ ЗА ГРАЂЕВИНСКУ ДОЗВОЛУ (ПГД) /ИДЕЈНИ ПРОКАТ (ИДП)  – 2.ФАЗА "]
[9,"ПРОЈЕКАТ ЗА ИЗВОЂЕЊЕ (ПЗИ) – 2.ФАЗА "]
[10,"ИДЕЈНО РЕШЕЊЕ ЗА ЛОКАЦИЈСКЕ УСЛОВЕ (ИДР) – 3.ФАЗА"]
[11,"ПРОЈЕКАТ ЗА ГРАЂЕВИНСКУ ДОЗВОЛУ (ПГД) /ИДЕЈНИ ПРОКАТ (ИДП)  – 3.ФАЗА "]
[12,"ПРОЈЕКАТ ЗА ИЗВОЂЕЊЕ (ПЗИ) – 3.ФАЗА "]
[null,"Целина бр.2 – Реконструкција „Музеја Срема“"]
[13,"ГЕОДЕТСКИ СНИМАК ЛОКАЦИЈЕ"]
[14,"ГЕОМЕХАНИЧКИ ЕЛАБОРАТ"]
[15,"ИЗВЕШТАЈ О ЗАТЕЧЕНОМ СТАЊУ ОБЈЕКТА"]
[16,"ИЗРАДА ПРОЈЕКТА ПОСТОЈЕЋЕГ СТАЊА "]
[17,"ИДЕЈНИ КОНЦЕПТ"]
[18,"ИДЕЈНО РЕШЕЊЕ ЗА ЛОКАЦИЈСКЕ УСЛОВЕ (ИДР) "]
[19,"ИДЕЈНИ ПРОЈЕКАТ (ИДП) "]
[20,"ПРОЈЕКАТ ЗА ИЗВОЂЕЊЕ (ПЗИ) "]
[null,"Целина бр.3 – Реконструкција Галерије „Лазар Возаревић“"]
[21,"ГЕОДЕТСКИ СНИМАК ЛОКАЦИЈЕ"]
[22,"ГЕОМЕХАНИЧКИ ЕЛАБОРАТ"]
[23,"ИЗВЕШТАЈ О ЗАТЕЧЕНОМ СТАЊУ ОБЈЕКТА"]
[24,"ИЗРАДА ПРОЈЕКТА ПОСТОЈЕЋЕГ СТАЊА "]
[25,"ИДЕЈНИ КОНЦЕПТ"]
[26,"ИДЕЈНО РЕШЕЊЕ ЗА ЛОКАЦИЈСКЕ УСЛОВЕ (ИДР) "]
[27,"ИДЕЈНИ ПРОЈЕКАТ (ИДП) "]
[28,"ПРОЈЕКАТ ЗА ИЗВОЂЕЊЕ (ПЗИ) "]
[null,"УКУПНО:"]
[]
[null,"Напомена: број календарских дана који су наведени у Понуди је максимално 300. За време трајања процедуралних активности, рокови мирују што се констатује записницима између Наручиоца и Пројектанта"]